bitfinex-derivatives/quotes_ETHF0:USTF0_20240905
["timestamp","ask_amount","ask_price","bid_price","bid_amount"]
[1725522853925,4.505,2413.5,2413.4,0.29627311]
[1725522854232,0.3618,2413.5,2413.4,0.29627311]
[1725522855520,0.3618,2413.5,2413.4,0.00621311]
[1725522859027,4.505,2413.5,2413.4,0.00621311]
[1725522861951,1.5541,2413.6,2413.5,0.29004]
[1725522862243,1.5541,2413.6,2413.5,0.68224]
[1725522862738,1.5541,2413.6,2413.5,0.3922]
[1725522862929,5.6973,2413.6,2413.5,0.3922]
[1725522868256,5.98733,2413.6,2413.5,0.3922]
[1725522868507,5.98733,2413.6,2413.4,0.00621311]
[1725522868653,0.3886,2413.5,2413.4,0.00621311]
[1725522869064,4.5318,2413.5,2413.4,0.00621311]
[1725522870757,4.82184,2413.5,2413.4,0.00621311]
[1725522871565,4.5318,2413.5,2413.4,0.00621311]
[1725522872060,4.82184,2413.5,2413.4,0.00621311]
[1725522872461,4.5318,2413.5,2413.4,0.00621311]
[1725522874762,4.82184,2413.5,2413.4,0.00621311]
[1725522874962,8.02964,2413.5,2413.4,0.00621311]
[1725522881467,8.02964,2413.5,2413.1,0.3932]
[1725522881666,1.19,2413.2,2413.0,0.7741]
[1725522881865,0.7524,2413.1,2413.0,1.1646]
[1725522882672,0.7524,2413.1,2413.0,1.72133003]
[1725522882870,0.7524,2413.1,2413.0,0.94723003]
[1725522883176,0.7524,2413.1,2413.0,0.3905]
[1725522889971,1.5549,2413.2,2413.0,0.6806]
[1725522890165,1.19,2413.2,2413.0,1.4172]
[1725522890968,0.7465,2413.4,2413.1,0.29009]
[1725522891174,1.19,2413.2,2413.1,0.29009]
[1725522891780,0.7465,2413.4,2413.1,0.29009]
[1725522892077,1.19,2413.2,2413.1,0.29009]
[1725522892270,1.19,2413.2,2413.0,1.4172]
[1725522896471,7.6981,2413.5,2413.0,1.1271]
[1725522896472,7.3188,2413.5,2413.0,1.1271]
[1725522896670,1.19,2413.4,2413.3,0.29007]
[1725522896884,1.19,2413.4,2413.3,1.22226184]
[1725522900179,1.19,2413.4,2413.3,0.93219184]
[1725522900582,1.19,2413.4,2413.0,0.3696]
[1725522900583,5.334,2413.4,2413.0,0.3696]
[1725522900780,1.37227,2413.3,2413.1,0.55735959]
[1725522900988,1.37227,2413.3,2413.0,0.3696]
[1725522901175,0.29008,2413.2,2413.0,0.3696]
[1725522901386,1.4801,2413.1,2412.7,3.49794]
[1725522901682,0.2901,2413.1,2412.8,0.91737312]
[1725522901873,1.19,2412.9,2412.8,0.3599]
[1725522902276,1.19,2412.9,2412.8,0.91742989]
[1725522903391,1.19,2412.9,2412.8,0.3599]
[1725522903882,1.19,2412.9,2412.8,0.7389]
[1725522905620,1.19,2412.9,2412.8,0.379]
[1725522906185,1.19,2412.9,2412.5,0.66306]
[1725522906389,0.7354,2412.9,2412.6,0.95127733]
[1725522906683,0.7354,2412.9,2412.6,0.3941]
[1725522907084,1.19,2412.7,2412.6,0.3941]
[1725522907283,1.19,2412.7,2412.6,0.95122348]
[1725522908694,1.19,2412.7,2412.6,0.9514091]
[1725522912097,1.19,2412.7,2412.6,1.2415591]
[1725522912287,0.3656,2413.0,2412.6,5.4641091]
[1725522912488,4.8463,2413.3,2412.8,0.29012]
[1725522912687,0.3564,2413.2,2412.9,0.9471091]
[1725522912893,0.3564,2413.2,2413.0,0.3679]
[1725522914195,1.19,2413.1,2413.0,0.3679]
[1725522915592,0.3564,2413.2,2413.0,0.3679]
[1725522915796,1.19,2413.1,2413.0,0.3679]
[1725522920999,1.19,2413.1,2412.9,0.7592]
[1725522921845,1.19,2413.1,2412.8,3.49792]
[1725522921940,1.19,2412.9,2412.8,0.29012]
[1725522922096,1.19,2412.9,2412.8,4.05514134]
[1725522923401,1.19,2412.9,2412.8,0.84734134]
[1725522923602,1.19,2412.9,2412.8,4.05514134]
[1725522923903,1.19,2412.9,2412.8,0.84734134]
[1725522924103,1.19,2412.9,2412.8,4.99214134]
[1725522926292,1.19,2412.9,2412.8,4.43492]
[1725522926602,1.19,2412.9,2412.8,4.99193622]
[1725522927111,1.19,2412.9,2412.8,4.43492]
[1725522927401,1.19,2412.9,2412.8,4.99197368]
[1725522928705,1.19,2412.9,2412.8,4.43492]
[1725522928899,1.19,2412.9,2412.8,4.99204965]
[1725522929900,1.19,2412.9,2412.8,0.84724965]
[1725522931801,1.19,2412.9,2412.8,4.05504965]
[1725522932000,1.19,2412.9,2412.8,4.05501609]
[1725522932203,1.19,2412.9,2412.8,1.67057039]
[1725522932498,1.19,2412.9,2412.8,1.67027465]
[1725522934401,0.3564,2413.2,2412.8,5.52495465]
[1725522934599,0.3564,2413.2,2413.0,3.4979]
[1725522934800,1.19,2413.1,2413.0,0.2901]
[1725522935100,1.19,2413.1,2413.0,4.05482922]
[1725522935306,1.19,2413.1,2413.0,4.41272922]
[1725522935608,1.19,2413.1,2413.0,3.8558]
[1725522935806,1.19,2413.1,2413.0,4.4127081]
[1725522936505,1.19,2413.1,2413.0,0.9148081]
[1725522937910,1.19,2413.1,2412.8,0.29012]
[1725522938206,1.19,2412.9,2412.8,0.29012]
[1725522938512,1.19,2412.9,2412.8,1.67033264]
[1725522938605,1.19,2412.9,2412.8,5.81513264]
[1725522939300,1.19,2412.9,2412.8,4.99190203]
[1725522940399,1.19,2412.9,2412.8,0.84710203]
[1725522943209,1.19,2412.9,2412.8,1.67056202]
[1725522943407,1.19,2412.9,2412.8,0.84710203]
[1725522945611,1.19,2412.9,2412.8,0.29012]
[1725522946211,1.19,2412.9,2412.8,0.84857758]
[1725522946513,1.19,2412.9,2412.8,1.67399075]
[1725522947371,1.19,2412.9,2412.8,1.67444696]
[1725522948012,1.19,2412.9,2412.8,1.67444735]
[1725522948909,1.19,2412.9,2412.8,4.88224735]
[1725522949914,1.19,2412.9,2412.8,1.67444735]
[1725522951514,1.19,2412.9,2412.8,4.88224735]
[1725522952514,1.19,2412.9,2412.8,9.75237735]
[1725522952721,1.19,2412.9,2412.8,10.83843313]
[1725522954230,1.19,2412.9,2412.8,9.45410578]
[1725522954712,1.19,2413.0,2412.9,1.01542]
[1725522954906,1.19,2413.0,2412.9,2.77013601]
[1725522955509,0.3564,2413.2,2413.1,0.41442]
[1725522955712,1.5464,2413.2,2413.1,1.79648821]
[1725522956707,0.3564,2413.2,2413.1,1.79648821]
[1725522956913,1.5464,2413.2,2413.1,5.00428821]
[1725522957112,1.5464,2413.2,2413.1,4.18001262]
[1725522957320,1.5464,2413.2,2413.1,5.00430173]
[1725522957538,1.5464,2413.2,2413.1,3.62222]
[1725522957824,1.5464,2413.2,2413.1,4.17992509]
[1725522958015,1.5464,2413.2,2413.1,5.828566]
[1725522960523,1.5464,2413.2,2413.1,1.79644044]
[1725522963321,1.5464,2413.2,2413.1,1.79651242]
[1725522965824,1.9608,2413.2,2413.1,1.79651242]
[1725522966025,1.5464,2413.2,2413.1,1.79651242]
[1725522967620,1.5464,2413.2,2413.1,0.97221777]
[1725522971422,1.9608,2413.2,2413.1,0.97221777]
[1725522971620,5.6904,2413.2,2413.0,0.41443]
[1725522971832,1.60442,2413.1,2413.0,0.41443]
[1725522972033,0.41442,2413.1,2413.0,0.41443]
[1725522972334,1.19,2413.1,2413.0,0.41443]
[1725522975127,1.60442,2413.1,2412.9,0.41445]
[1725522975327,1.19,2413.0,2412.9,0.41445]
[1725522977229,1.60445,2413.0,2412.7,0.3742]
[1725522977435,0.3564,2413.2,2412.7,0.78869]
[1725522977436,1.19,2412.8,2412.7,0.78869]
[1725522977734,1.19,2412.8,2412.7,1.24050451]
[1725522982909,1.19,2412.8,2412.7,1.24082696]
[1725522983630,1.19,2412.8,2412.7,1.79970876]
[1725522986046,1.19,2412.8,2412.7,0.41449]
[1725522986252,1.19,2412.8,2412.7,0.97324899]
[1725522988234,1.19,2412.8,2412.7,1.79917004]
[1725522988435,1.19,2412.8,2412.7,0.97324899]
[1725522988631,1.19,2412.8,2412.7,2.1550398]
[1725522988934,1.19,2412.8,2412.7,1.32904899]
[1725522989438,1.19,2412.8,2412.7,1.32913046]
[1725522989633,1.19,2412.8,2412.7,0.77029]
[1725522989833,1.19,2412.8,2412.7,1.32912763]
[1725522990035,1.19,2412.8,2412.7,2.15512441]
[1725522991030,1.19,2412.8,2412.7,2.15519802]
[1725522991440,4.111,2413.2,2412.7,5.88550802]
[1725522991637,4.4882,2413.2,2413.1,0.41442]
[1725522991832,4.4882,2413.2,2413.1,0.97325763]
[1725522991833,4.111,2413.2,2413.1,0.97325763]
[1725522992030,4.111,2413.2,2413.1,1.79905453]
[1725522992031,5.301,2413.2,2413.1,1.79905453]
[1725522992431,5.301,2413.2,2413.1,2.53683328]
[1725522992635,1.19,2413.2,2413.1,2.53688416]
[1725522992948,0.3772,2413.5,2413.1,2.12236239]
[1725522993146,0.3772,2413.5,2413.4,0.41437]
[1725522993438,1.5672,2413.5,2413.3,0.41438]
[1725522993640,1.19,2413.4,2413.3,0.41438]
[1725523000134,0.4144,2413.3,2413.1,0.78261]
[1725523000330,1.19,2413.2,2413.1,0.78262]
[1725523000536,1.9182,2413.2,2413.1,1.34122875]
[1725523000734,1.9182,2413.2,2413.1,1.34123219]
[1725523001746,1.1426,2413.2,2413.1,0.97303219]
[1725523001949,6.4766,2413.2,2413.1,0.41442]
[1725523002446,0.41442,2413.1,2413.0,0.41443]
[1725523002645,0.41444,2413.0,2412.9,0.41444]
[1725523002849,0.79064,2413.0,2412.9,0.9732795]
[1725523003147,0.3762,2413.0,2412.9,0.9732795]
[1725523005869,0.3762,2413.0,2412.9,0.41444]
[1725523006154,0.3762,2413.0,2412.9,0.9733813]
[1725523007552,1.60443,2413.1,2413.0,0.41444]
[1725523007553,1.19,2413.1,2413.0,0.41444]
[1725523007845,1.19,2413.1,2413.0,0.97324214]
[1725523008656,1.53592,2413.2,2413.1,0.41442]
[1725523008847,2.72592,2413.2,2413.1,0.41442]
[1725523009048,6.86992,2413.2,2413.1,0.41442]
[1725523009347,6.86992,2413.2,2413.0,0.41443]
[1725523009571,1.19,2413.1,2413.0,0.41443]
[1725523009847,1.19,2413.1,2413.0,0.97328041]
[1725523010046,1.19,2413.1,2413.0,0.97327348]
[1725523010254,1.19,2413.1,2413.0,0.41443]
[1725523011552,5.334,2413.1,2413.0,0.41443]
[1725523012247,1.19,2413.1,2413.0,0.41443]
[1725523014548,1.19,2413.1,2413.0,0.97333482]
[1725523015707,1.19,2413.1,2413.0,0.41443]
[1725523015949,4.111,2413.4,2413.0,5.73892276]
[1725523016142,5.301,2413.4,2413.3,0.41439]
[1725523016346,5.301,2413.4,2413.3,2.00901169]
[1725523016852,1.19,2413.4,2413.3,2.00901169]
[1725523017153,1.19,2413.5,2413.4,0.41437]
[1725523017355,1.19,2413.5,2413.4,0.97302169]
[1725523017560,1.19,2413.5,2413.4,5.11622169]
[1725523017754,1.19,2413.5,2413.4,0.97302169]
[1725523018056,1.19,2413.5,2413.4,5.11622169]
[1725523019044,1.19,2413.5,2413.4,4.55757]
[1725523019155,1.19,2413.5,2413.4,5.11601531]
[1725523020464,1.19,2413.5,2413.4,0.41437]
[1725523021331,1.5753,2413.5,2413.4,0.41437]
[1725523028070,1.98965,2413.5,2413.4,0.41437]
[1725523029063,0.41437,2413.4,2413.2,0.3925]
[1725523029256,0.41441,2413.2,2413.1,0.4144]
[1725523029655,1.1423,2413.2,2413.1,0.4144]
[1725523029856,1.5567,2413.2,2413.1,0.4144]
[1725523030656,0.41442,2413.1,2413.0,0.41443]
[1725523030872,1.60442,2413.1,2413.0,0.41443]
[1725523031069,1.19,2413.1,2413.0,0.41443]
[1725523033065,1.60442,2413.1,2413.0,0.41443]
[1725523033870,1.60442,2413.1,2412.9,0.41445]
[1725523033871,0.41445,2413.0,2412.9,0.41445]
[1725523034066,1.60445,2413.0,2412.9,0.41445]
[1725523035671,1.19,2413.0,2412.9,0.41445]
[1725523039174,1.60444,2413.0,2412.9,0.41445]
[1725523047773,0.41447,2412.9,2412.8,0.41446]
[1725523047978,1.97817,2412.9,2412.8,0.41446]
[1725523049682,0.41448,2412.8,2412.7,0.41448]
[1725523049883,2.33688,2412.8,2412.7,0.41448]
[1725523050583,1.96368,2412.8,2412.7,0.41448]
[1725523050880,2.35458,2412.8,2412.7,0.41448]
[1725523051670,2.35458,2412.8,2412.6,0.4145]
[1725523051671,0.41449,2412.7,2412.6,0.4145]
[1725523052182,0.41452,2412.5,2412.4,0.80463]
[1725523052305,1.96712,2412.6,2412.5,0.41452]
[1725523052476,0.41452,2412.5,2412.4,0.80463]
[1725523052974,1.96712,2412.6,2412.5,0.41452]
[1725523054181,1.96712,2412.6,2412.4,0.80463]
[1725523054382,1.96712,2412.6,2412.4,0.3901]
[1725523054581,1.5526,2412.6,2412.4,0.3901]
[1725523054887,1.5526,2412.6,2412.5,0.41452]
[1725523056286,1.96712,2412.6,2412.4,0.80463]
[1725523056787,1.96712,2412.6,2412.5,0.41452]
[1725523060111,0.41452,2412.5,2412.4,1.18353]
[1725523060288,1.96712,2412.6,2412.5,0.41452]
[1725523063895,1.5526,2412.6,2412.5,0.41452]
[1725523064084,1.96711,2412.6,2412.5,0.41452]
[1725523064886,1.5526,2412.6,2412.5,0.41452]
[1725523071707,0.00621311,2412.7,2412.4,0.769]
[1725523072003,0.00621311,2412.7,2412.6,1.45078]
[1725523072207,1.19621311,2412.7,2412.6,1.45078]
[1725523072401,1.19621311,2412.7,2412.6,5.59558]
[1725523073104,1.19621311,2412.7,2412.6,4.55931]
[1725523077304,1.19621311,2412.7,2412.6,5.1181692]
[1725523078801,1.19621311,2412.7,2412.6,4.55931]
[1725523079208,1.19621311,2412.7,2412.6,5.11821029]
[1725523079509,1.19621311,2412.7,2412.6,4.55931]
[1725523080106,1.19621311,2412.7,2412.6,5.1182116]
[1725523080435,1.19621311,2412.7,2412.6,4.55931]
[1725523082418,1.19621311,2412.7,2412.6,0.41451]
[1725523086415,1.92411311,2412.7,2412.6,0.41451]
[1725523089812,1.92411311,2412.7,2412.6,0.9736991]
[1725523091227,1.92411311,2412.7,2412.6,0.5591891]
[1725523091526,1.92411311,2412.7,2412.5,0.41451]
[1725523091527,0.41451,2412.6,2412.5,0.41451]
[1725523091719,0.41451,2412.6,2412.5,0.97372564]
[1725523092923,1.92411311,2412.7,2412.5,0.55921342]
[1725523093117,2.33861311,2412.7,2412.6,0.41451]
[1725523095622,1.92411311,2412.7,2412.6,0.41451]
[1725523096016,0.00621311,2412.7,2412.6,1.45078]
[1725523096219,1.19621311,2412.7,2412.6,1.45078]
[1725523096434,1.19621311,2412.7,2412.6,2.00997467]
[1725523096624,1.19621311,2412.7,2412.6,0.97370467]
[1725523098022,1.19621311,2412.7,2412.6,2.00997467]
[1725523098626,1.19621311,2412.7,2412.6,6.15477467]
[1725523099734,1.19621311,2412.7,2412.6,6.15473868]
[1725523099930,1.19621311,2412.7,2412.6,7.19100868]
[1725523100833,0.00621311,2412.7,2412.6,7.19100868]
[1725523101033,0.00621311,2412.7,2412.6,13.19100868]
[1725523104235,1.19621311,2412.7,2412.6,13.19100868]
[1725523104441,1.19621311,2412.7,2412.6,12.15473868]
[1725523106651,0.00621311,2412.7,2412.6,11.59558]
[1725523106938,1.19621311,2412.7,2412.6,13.19099104]
[1725523107144,1.19621311,2412.7,2412.6,53.99099104]
[1725523107341,1.19621311,2412.7,2412.6,52.95472104]
[1725523107839,1.19621311,2412.7,2412.6,53.99099104]
[1725523108746,0.00621311,2412.7,2412.6,55.07704682]
[1725523109147,0.00621311,2412.7,2412.6,55.07724479]
[1725523109849,3.11e-06,2412.7,2412.6,56.06354104]
[1725523110149,4.52534,2413.6,2413.2,1.03601]
[1725523110150,1.19,2413.4,2413.2,1.03601]
[1725523110337,1.19,2413.4,2413.3,4.93833104]
[1725523112043,1.19,2413.4,2413.3,5.97430104]
[1725523112447,0.00621311,2413.6,2413.3,5.97430104]
[1725523112448,1.19,2413.5,2413.4,0.41437]
[1725523112649,1.19,2413.5,2413.4,0.97351104]
[1725523112844,1.19,2413.5,2413.4,5.11671104]
[1725523113347,1.19,2413.5,2413.4,4.55757]
[1725523114259,1.19,2413.5,2413.4,5.11656185]
[1725523114446,0.00621311,2413.6,2413.5,0.41435]
[1725523114746,1.19621311,2413.6,2413.5,4.93005]
[1725523119353,1.19621311,2413.6,2413.5,5.96594]
[1725523128426,1.19621311,2413.6,2413.5,5.59344]
[1725523136161,0.00621311,2413.6,2413.5,6.62933]
[1725523139753,0.00621311,2413.6,2413.5,7.81933]
[1725523141562,0.00621311,2413.6,2413.5,11.02713]
[1725523144459,0.00621311,2413.6,2413.5,9.83713]
[1725523145067,0.00621311,2413.6,2413.5,4.65804]
[1725523145264,0.00621311,2413.6,2413.5,8.80124]
[1725523145860,0.00621311,2413.6,2413.5,4.65804]
[1725523148669,0.00621311,2413.6,2413.5,1.45024]
[1725523148862,0.00621311,2413.6,2413.5,4.65804]
[1725523149370,0.00621311,2413.6,2413.5,3.62215]
[1725523150360,0.00621311,2413.6,2413.5,4.18078503]
[1725523151368,0.00621311,2413.6,2413.5,4.18093258]
[1725523151557,1.19621311,2413.6,2413.5,3.76658258]
[1725523151772,1.19621311,2413.6,2413.1,3.21401311]
[1725523151773,5.75374311,2413.6,2413.1,3.21401311]
[1725523151967,1.1283,2413.5,2413.4,0.41436]
[1725523152161,1.1283,2413.5,2413.3,0.41437]
[1725523152663,1.19,2413.4,2413.3,0.41437]
[1725523152867,1.19,2413.4,2413.3,0.97335093]
[1725523153463,1.19,2413.4,2413.3,0.55898093]
[1725523153663,1.60437,2413.4,2413.3,0.55898093]
[1725523153968,1.19,2413.4,2413.3,0.55907971]
[1725523154164,1.19,2413.4,2413.3,0.41439]
[1725523154480,1.19,2413.4,2413.3,0.97348589]
[1725523154698,1.19,2413.4,2413.3,0.97348502]
[1725523155069,1.19,2413.4,2413.3,0.41439]
[1725523155368,5.334,2413.4,2413.3,0.97348503]
[1725523156265,5.74837,2413.4,2413.3,0.55909503]
[1725523156572,5.74837,2413.4,2413.2,0.41439]
[1725523156867,1.19,2413.3,2413.2,0.41439]
[1725523157072,1.19,2413.3,2413.2,0.97349733]
[1725523157369,1.19,2413.3,2413.2,0.41439]
[1725523157667,5.334,2413.3,2413.2,0.41439]
[1725523161874,5.74839,2413.3,2413.2,0.41439]
[1725523163272,5.74839,2413.3,2413.1,0.42062311]
[1725523163472,0.37,2413.2,2413.1,0.42062311]
[1725523168369,0.37,2413.2,2413.1,5.40778311]
[1725523168570,1.19,2413.3,2413.2,0.4144]
[1725523174684,1.19,2413.3,2413.2,3.6222]
[1725523177093,1.19,2413.3,2413.2,0.4144]
[1725523177386,1.19,2413.3,2413.2,3.6222]
[1725523179381,1.19,2413.3,2413.2,0.4144]
[1725523179580,1.19,2413.3,2413.2,3.6222]
[1725523179782,1.19,2413.3,2413.2,0.4144]
[1725523179981,1.19,2413.3,2413.2,3.6222]
[1725523180177,1.19,2413.3,2413.2,0.4144]
[1725523180389,1.19,2413.3,2413.2,3.6222]
[1725523180691,1.19,2413.3,2413.2,0.4144]
[1725523181803,0.4144,2413.2,2413.1,0.00621311]
[1725523182088,1.6044,2413.3,2413.1,0.00621311]
[1725523182391,4.5584,2413.2,2413.1,0.00621311]
[1725523184087,4.5584,2413.2,2413.1,0.42063311]
[1725523186997,4.144,2413.2,2413.1,0.42063311]
[1725523187697,1.60439,2413.3,2413.2,0.4144]
[1725523188195,5.74839,2413.3,2413.2,0.4144]
[1725523188605,0.385,2413.4,2413.1,0.00621311]
[1725523188606,0.385,2413.4,2413.3,0.41439]
[1725523188890,6.13337,2413.4,2413.3,0.41439]
[1725523189097,0.41439,2413.3,2413.2,0.41439]
[1725523189285,1.60439,2413.3,2413.2,0.41439]
[1725523189490,5.74839,2413.3,2413.2,0.41439]
[1725523189849,1.60439,2413.3,2413.2,0.41439]
[1725523190789,1.19,2413.3,2413.2,0.41439]
[1725523194207,1.19,2413.3,2413.2,4.93929036]
[1725523194769,1.19,2413.3,2413.2,4.93935221]
[1725523198100,1.19,2413.3,2413.2,4.93935683]
[1725523198695,1.19,2413.3,2413.2,4.93936956]
[1725523198895,1.19,2413.3,2413.2,4.18126956]
[1725523200339,0.385,2413.4,2413.3,0.41439]
[1725523200512,0.79938,2413.4,2413.2,3.6222]
[1725523200994,0.79938,2413.4,2413.1,0.00621311]
[1725523200995,7.76619,2413.3,2413.1,0.00621311]
[1725523201213,7.76619,2413.3,2413.1,0.42063311]
[1725523201214,0.20943091,2413.2,2413.1,0.42063311]
[1725523202294,0.79937,2413.4,2413.2,0.41439]
[1725523202700,6.79937,2413.4,2413.1,0.00621311]
[1725523202892,0.79937,2413.4,2413.1,0.00621311]
[1725523203093,0.79937,2413.4,2413.2,0.41439]
[1725523203494,0.79937,2413.4,2413.3,0.41439]
[1725523203500,6.385,2413.4,2413.3,0.41439]
[1725523203806,6.385,2413.4,2413.1,0.00621311]
[1725523203807,0.385,2413.4,2413.1,0.00621311]
[1725523205306,3.2078,2413.3,2413.1,0.00621311]
[1725523205908,0.4144,2413.2,2413.1,0.00621311]
[1725523207513,1.65937609,2413.2,2413.1,0.00621311]
[1725523207810,5.80337609,2413.2,2413.1,0.00621311]
[1725523208207,11.80337609,2413.2,2413.1,0.00621311]
[1725523209507,10.76735609,2413.2,2413.1,0.00621311]
[1725523210801,16.61127064,2413.2,2413.1,0.00621311]
[1725523211004,16.61127064,2413.2,2412.6,0.79679]
[1725523211005,1.03608,2413.1,2412.6,0.79679]
[1725523211297,0.41448,2412.8,2412.6,0.41449]
[1725523211497,1.1791,2412.7,2412.5,3.2078]
[1725523211703,1.1791,2412.7,2412.6,0.55920143]
[1725523211902,1.1791,2412.7,2412.5,3.2078]
[1725523212106,1.1791,2412.7,2412.6,0.41451]
[1725523213212,1.1791,2412.7,2412.5,0.41451]
[1725523213415,1.1791,2412.7,2412.6,0.41451]
[1725523214208,1.1791,2412.7,2412.5,0.41451]
[1725523214543,1.1791,2412.7,2412.6,0.41451]
[1725523214711,0.41452,2412.6,2412.4,0.41453]
[1725523214906,0.77172,2412.6,2412.4,0.41453]
[1725523215209,0.41452,2412.5,2412.3,1.14264]
[1725523215610,0.3584,2412.4,2412.3,1.14264]
[1725523224711,0.77171,2412.6,2412.4,0.41453]
[1725523224911,1.13441,2412.6,2412.4,0.41453]
[1725523225748,1.13441,2412.6,2412.5,0.41452]
[1725523225930,0.7199,2412.6,2412.5,0.41452]
[1725523226117,7.3188,2413.0,2412.4,1.03636]
[1725523226313,7.73324,2413.0,2412.9,0.41445]
[1725523226518,0.41444,2413.0,2412.9,0.41445]
[1725523226719,4.92654,2413.0,2412.9,0.41445]
[1725523226918,5.31474,2413.0,2412.9,0.41445]
[1725523227224,5.31474,2413.0,2412.7,0.3711]
[1725523227424,1.17074,2413.0,2412.8,0.41447]
[1725523227627,4.37855,2413.0,2412.8,0.41447]
[1725523227820,3.9641,2413.0,2412.8,0.41447]
[1725523228021,0.41446,2412.9,2412.7,0.78558]
[1725523228421,0.41449,2412.7,2412.6,0.3895]
[1725523229419,0.41449,2412.7,2412.6,0.80401]
[1725523229720,0.41448,2412.8,2412.6,0.80401]
[1725523229926,1.52965,2413.0,2412.8,0.41447]
[1725523230123,1.52965,2413.0,2412.9,0.3589]
[1725523230528,5.67365,2413.0,2412.9,0.3589]
[1725523230828,8.88145,2413.0,2412.9,0.3589]
[1725523231022,0.41446,2412.9,2412.8,0.41447]
[1725523231515,0.41445,2412.9,2412.8,0.41447]
[1725523233528,0.41445,2412.9,2412.7,0.41447]
[1725523233824,0.41445,2412.9,2412.8,0.41447]
[1725523234128,3.62225,2412.9,2412.7,0.41448]
[1725523234426,0.41449,2412.7,2412.6,0.3589]
[1725523234629,3.2078,2412.9,2412.5,0.79341]
[1725523234630,0.41451,2412.6,2412.5,0.79341]
[1725523234833,0.3729,2412.6,2412.5,0.79341]
[1725523235430,0.4145,2412.7,2412.6,0.41451]
[1725523235624,4.24396,2412.9,2412.7,0.41448]
[1725523235625,4.00016,2412.9,2412.7,0.41448]
[1725523235830,4.00016,2412.9,2412.8,0.7538]
[1725523236529,0.41447,2412.8,2412.7,0.41448]
[1725523236732,0.41449,2412.7,2412.6,0.7699]
[1725523237230,0.41451,2412.6,2412.5,0.79342]
[1725523237429,0.79241,2412.6,2412.5,0.79342]
[1725523237637,0.3779,2412.6,2412.5,0.79342]
[1725523238030,0.79241,2412.6,2412.5,0.79342]
[1725523238538,0.3779,2412.6,2412.5,0.79342]
[1725523238931,0.79241,2412.6,2412.5,0.79342]
[1725523240333,0.79241,2412.6,2412.5,0.41452]
[1725523240623,0.3779,2412.6,2412.5,0.41452]
[1725523240727,0.79241,2412.6,2412.5,0.41452]
[1725523240929,1.54771,2412.6,2412.5,0.41452]
[1725523241533,1.1332,2412.6,2412.5,0.41452]
[1725523241725,1.54771,2412.6,2412.5,0.41452]
[1725523244239,0.41452,2412.5,2412.4,0.41453]
[1725523244444,1.54772,2412.6,2412.4,0.41453]
[1725523246843,1.54772,2412.6,2412.5,0.41452]
[1725523247435,1.54772,2412.6,2412.3,0.7699]
[1725523247436,1.54772,2412.6,2412.4,0.41453]
[1725523248526,0.41452,2412.5,2412.4,0.41453]
[1725523248834,1.54772,2412.6,2412.4,0.41453]
[1725523249335,0.41452,2412.5,2412.4,0.41453]
[1725523249738,0.41454,2412.4,2412.3,1.18446]
[1725523250141,0.41454,2412.4,2412.3,1.74335018]
[1725523250731,0.41454,2412.4,2412.3,1.74327604]
[1725523251845,0.41454,2412.5,2412.3,1.32871604]
[1725523252185,2.16949,2412.6,2412.3,1.18445]
[1725523252346,0.41454,2412.4,2412.3,1.18445]
[1725523252603,0.41454,2412.4,2412.3,1.74324958]
[1725523252770,0.41454,2412.4,2412.3,1.18445]
[1725523253639,0.41453,2412.5,2412.4,0.41454]
[1725523254367,0.41453,2412.5,2412.4,0.97333325]
[1725523254639,3.6223,2412.7,2412.6,0.41451]
[1725523254836,3.6223,2412.7,2412.5,0.41451]
[1725523254837,0.41451,2412.6,2412.5,0.41451]
[1725523255336,0.41451,2412.6,2412.5,0.97328277]
[1725523255743,3.6223,2412.7,2412.6,0.41451]
[1725523256042,3.2078,2412.7,2412.6,0.41451]
[1725523256246,3.2078,2412.7,2412.6,0.97335274]
[1725523256750,3.2078,2412.7,2412.6,0.41451]
[1725523257037,0.41447,2412.9,2412.7,0.41449]
[1725523257242,0.41447,2412.9,2412.8,0.7508]
[1725523257243,3.62227,2412.9,2412.8,0.7508]
[1725523257545,3.62227,2412.9,2412.8,1.16527]
[1725523258640,3.62227,2412.9,2412.8,0.7508]
[1725523258944,4.81227,2412.9,2412.8,0.7508]
[1725523259839,4.81227,2412.9,2412.8,1.16527]
[1725523260391,8.5426,2412.9,2412.3,3.2078]
[1725523260598,1.19,2412.5,2412.4,0.41453]
[1725523260740,1.19,2412.5,2412.4,0.97369468]
[1725523261436,1.5476,2412.5,2412.4,0.97369468]
[1725523262037,1.19,2412.5,2412.4,0.97369468]
[1725523262950,1.19,2412.5,2412.4,0.41453]
[1725523263154,0.3576,2412.8,2412.4,4.70402035]
[1725523263770,3.2078,2412.9,2412.6,0.41451]
[1725523263771,1.19,2412.7,2412.6,0.41451]
[1725523264037,1.19,2412.7,2412.6,0.97355692]
[1725523266348,1.19,2412.7,2412.6,0.41451]
[1725523266557,1.19,2412.7,2412.6,0.97371199]
[1725523269647,1.60449,2412.7,2412.6,0.97371199]
[1725523270954,1.19,2412.7,2412.6,0.97371199]
[1725523271141,1.60449,2412.7,2412.6,0.97362129]
[1725523272054,0.41454,2412.4,2412.3,0.3901]
[1725523272347,0.41454,2412.4,2412.3,0.97376637]
[1725523272348,1.60454,2412.4,2412.3,0.97376637]
[1725523273044,0.3664,2412.6,2412.5,0.41452]
[1725523273245,1.5564,2412.6,2412.5,0.97372637]
[1725523274151,1.97091,2412.6,2412.5,0.97372637]
[1725523275047,1.97091,2412.6,2412.5,0.55920637]
[1725523275755,0.41454,2412.5,2412.1,0.369]